fUST/lending_fUST_20240112
["ID","MTS","AMOUNT","RATE_DAILY","PERIOD"]
[311298753,1705048241440,-2123.64,0.00027671,2]
[311298754,1705048241451,-500.0,0.00027671,2]
[311298755,1705048241460,-1004.19,0.00027671,2]
[311298756,1705048241469,-500.0,0.00027671,2]
[311298757,1705048241478,-500.0,0.00027671,2]
[311298758,1705048241487,-428.54979242,0.00027671,2]
[311298759,1705048241496,-500.0,0.00027671,2]
[311298760,1705048241505,-500.0,0.00027671,2]
[311298761,1705048241514,-500.0,0.00027671,2]
[311298762,1705048241524,-502.04559348,0.00027671,2]
[311298763,1705048241534,-508.33250671,0.00027671,2]
[311298764,1705048241545,-500.0,0.00027671,2]
[311298765,1705048241554,-500.0,0.00027671,2]
[311298766,1705048241563,-500.0,0.00027671,2]
[311298767,1705048241573,-549.18434283,0.00027671,2]
[311298768,1705048241582,-500.0,0.00027671,2]
[311298769,1705048241591,-193.70018175,0.00027671,2]
[311298770,1705048241600,-514.48,0.00027671,2]
[311298771,1705048241610,-872.05,0.00027671,2]
[311298772,1705048241620,-500.0,0.00027671,2]
[311298773,1705048241630,-500.0,0.00027671,2]
[311298774,1705048241640,-500.0,0.00027671,2]
[311298775,1705048241649,-609.71,0.00027671,2]
[311298776,1705048241658,-500.0,0.00027671,2]
[311298777,1705048241667,-610.31,0.00027671,2]
[311298778,1705048241676,-154.3480335,0.000277,2]
[311298779,1705048241685,-197.246188,0.00027914,2]
[311298780,1705048241694,-504.88887298,0.00027945,2]
[311298781,1705048241705,-503.40046405,0.00027945,2]
[311298782,1705048241714,-504.80544081,0.00027945,2]
[311298783,1705048241723,-528.53480019,0.00027945,2]
[311298784,1705048241732,-500.0,0.00027945,2]
[311298785,1705048241741,-492.339166,0.00027945,2]
[311298786,1705048241750,-502.20916932,0.00027945,2]
[311298787,1705048241759,-689.75,0.00027945,2]
[311298788,1705048241768,-582.08787298,0.00027945,2]
[311298789,1705048241778,-500.0,0.00027945,2]
[311298790,1705048241787,-463.59897316,0.00027945,2]
[311298791,1705048241797,-500.0,0.00027945,2]
[311298792,1705048241806,-500.0,0.00027945,2]
[311298793,1705048241815,-533.3142059,0.00027945,2]
[311298794,1705048241825,-798.81,0.00027945,2]
[311298795,1705048241834,-500.95295701,0.00027945,2]
[311298796,1705048241843,-501.83415436,0.00027945,2]
[311298797,1705048241941,-500.0,0.00027945,2]
[311298798,1705048241953,-626.6512318,0.00027945,2]
[311298799,1705048241963,-502.54783977,0.00027945,2]
[311298800,1705048241973,-330.91131057,0.00027945,2]
[311298801,1705048241982,-508.23531577,0.00027945,2]
[311298802,1705048241992,-430.91285919,0.00027945,2]
[311298803,1705048242001,-500.0,0.00027945,2]
[311298804,1705048242010,-1872.03,0.00027945,2]
[311298805,1705048242019,-500.0,0.00027945,2]
[311298806,1705048242029,-503.26176095,0.00027945,2]
[311298807,1705048242038,-500.0,0.00027945,2]
[311298808,1705048242047,-500.0,0.00027945,2]
[311298809,1705048242057,-504.35283847,0.00027945,2]
[311298810,1705048242065,-500.0,0.00027945,2]
[311298811,1705048242075,-9878.13,0.00027945,2]
[311298812,1705048242084,-501.70978444,0.00027945,2]
[311298813,1705048242093,-500.0,0.00027945,2]
[311298814,1705048242102,-509.54407372,0.00027945,2]
[311298815,1705048242111,-500.0,0.00027945,2]
[311298816,1705048242122,-317.70340778,0.00027945,2]
[311298817,1705048242131,-500.0,0.00027945,2]
[311298818,1705048242140,-500.0,0.00027945,2]
[311298819,1705048242150,-500.0,0.00027945,2]
[311298820,1705048242159,-500.0,0.00027945,2]
[311298821,1705048242168,-500.0,0.00027945,2]
[311298822,1705048242177,-166.22206153,0.00027945,2]
[311298823,1705048242186,-5678.27,0.00027945,2]
[311298824,1705048242195,-500.0,0.00027945,2]
[311298825,1705048242206,-500.0,0.00027945,2]
[311298826,1705048242216,-2123.64,0.00027945,2]
[311298827,1705048242225,-502.61545032,0.00027945,2]
[311298828,1705048242234,-1004.19,0.00027945,2]
[311298829,1705048242243,-500.0,0.00027945,2]
[311298830,1705048242253,-503.82854827,0.00027945,2]
[311298831,1705048242264,-503.49561918,0.00027945,2]
[311298832,1705048242274,-500.0,0.00027945,2]
[311298833,1705048242283,-286.77903007,0.00027945,2]
[311298834,1705048242293,-504.95877048,0.00027945,2]
[311298835,1705048242302,-502.48431119,0.00027945,2]
[311298836,1705048242312,-597.34227916,0.00027945,2]
[311298837,1705048242321,-501.1231828,0.00027945,2]
[311298838,1705048242330,-514.48,0.00027945,2]
[311298839,1705048242339,-872.05,0.00027945,2]
[311298840,1705048242350,-500.0,0.00027945,2]
[311298841,1705048242359,-500.0,0.00027945,2]
[311298842,1705048242368,-506.23457127,0.00027945,2]
[311298843,1705048242377,-609.71,0.00027945,2]
[311298844,1705048242386,-500.0,0.00027945,2]
[311298845,1705048242396,-610.31,0.00027945,2]
[311298846,1705048242405,-237.7053383,0.00028,2]
[311298847,1705048242415,-620.15793966,0.00028052,2]
[311298848,1705048242424,-151.0,0.00028119,2]
[311298849,1705048242433,-500.0,0.00028219,2]
[311298850,1705048242442,-689.75,0.00028219,2]
[311298851,1705048242453,-506.10378055,0.00028219,2]
[311298852,1705048242462,-504.49424522,0.00028219,2]
[311298853,1705048242471,-500.0,0.00028219,2]
[311298854,1705048242481,-798.81,0.00028219,2]
[311298855,1705048242490,-221.18200146,0.00028219,2]
[311298856,1705048242499,-595.26091951,0.00028219,2]
[311298857,1705048242508,-1872.03,0.00028219,2]
[311298858,1705048242517,-623.8853397,0.00028219,2]
[311298859,1705048242529,-510.47449178,0.00028219,2]
[311298860,1705048242538,-500.0,0.00028219,2]
[311298861,1705048242546,-500.0,0.00028219,2]
[311298862,1705048242555,-9878.13,0.00028219,2]
[311298863,1705048242564,-500.0,0.00028219,2]
[311298864,1705048242573,-500.0,0.00028219,2]
[311298866,1705048242586,-500.0,0.00028219,2]
[311298867,1705048242595,-500.0,0.00028219,2]
[311298868,1705048242603,-503.33070678,0.00028219,2]
[311298869,1705048242612,-253.32882516,0.00028219,2]
[311298870,1705048242622,-5678.27,0.00028219,2]
[311298871,1705048242631,-581.64495068,0.00028219,2]
[311298872,1705048242640,-218.47435241,0.00028219,2]
[311298873,1705048242649,-2123.64,0.00028219,2]
[311298875,1705048242658,-1004.19,0.00028219,2]
[311298876,1705048242667,-500.0,0.00028219,2]
[311298878,1705048242676,-500.0,0.00028219,2]
[311298879,1705048242685,-514.48,0.00028219,2]
[311298880,1705048242694,-872.05,0.00028219,2]
[311298881,1705048242707,-500.0,0.00028219,2]
[311298882,1705048242716,-510.88740699,0.00028219,2]
[311298883,1705048242725,-609.71,0.00028219,2]
[311298884,1705048242733,-502.90417363,0.00028219,2]
[311298885,1705048242742,-384.0165987,0.00028493,2]
[311298886,1705048242752,-689.75,0.00028493,2]
[311298888,1705048242762,-391.04603421,0.00028493,2]
[311298889,1705048242771,-798.81,0.00028493,2]
[311298890,1705048242784,-1872.03,0.00028493,2]
[311298891,1705048242793,-500.0,0.00028493,2]
[311298892,1705048242802,-500.0,0.00028493,2]
[311298893,1705048242811,-9878.13,0.00028493,2]
[311298894,1705048242820,-500.0,0.00028493,2]
[311298895,1705048242829,-500.0,0.00028493,2]
[311298896,1705048242837,-322.7825463,0.00028493,2]
[311298897,1705048242846,-500.0,0.00028493,2]
[311298898,1705048242856,-5678.27,0.00028493,2]
[311298899,1705048242865,-2123.64,0.00028493,2]
[311298900,1705048242874,-1004.19,0.00028493,2]
[311298901,1705048242883,-500.0,0.00028493,2]
[311298902,1705048242892,-500.0,0.00028493,2]
[311298903,1705048242901,-514.48,0.00028493,2]
[311298904,1705048242911,-872.05,0.00028493,2]
[311298905,1705048242920,-500.0,0.00028493,2]
[311298906,1705048242929,-609.71,0.00028493,2]
[311298907,1705048242938,-197.246188,0.0002853,2]
[311298908,1705048242947,-1000.0,0.00028748,2]
[311298909,1705048242960,-204.44792926,0.00028748,2]
[311298910,1705048242969,-500.0,0.00028748,2]
[311298911,1705048242978,-500.0,0.00028748,2]
[311298913,1705048242987,-500.0,0.00028748,2]
[311298915,1705048242996,-225.43281937,0.00028748,2]
[311298917,1705048243005,-500.0,0.00028748,2]
[311298919,1705048243014,-500.0,0.00028748,2]
[311298921,1705048243024,-500.0,0.00028748,2]
[311298923,1705048243033,-500.0,0.00028748,2]
[311298925,1705048243042,-500.0,0.00028748,2]
[311298927,1705048243051,-500.0,0.00028748,2]
[311298929,1705048243059,-500.0,0.00028748,2]
[311298931,1705048243068,-500.0,0.00028748,2]
[311298933,1705048243077,-500.0,0.00028748,2]
[311298935,1705048243086,-500.0,0.00028748,2]
[311298937,1705048243095,-500.0,0.00028748,2]
[311298939,1705048243104,-500.0,0.00028748,2]
[311298941,1705048243113,-511.78690639,0.00028748,2]
[311298943,1705048243121,-601.70361142,0.00028748,2]
[311298945,1705048243132,-500.46370977,0.00028748,2]
[311298947,1705048243141,-500.0,0.00028748,2]
[311298949,1705048243150,-500.0,0.00028748,2]
[311298951,1705048243158,-500.0,0.00028748,2]
[311298953,1705048243167,-500.0,0.00028748,2]
[311298954,1705048243176,-500.0,0.00028748,2]
[311298956,1705048243185,-500.0,0.00028748,2]
[311298959,1705048243195,-500.0,0.00028748,2]
[311298962,1705048243204,-500.0,0.00028748,2]
[311298965,1705048243213,-500.0,0.00028748,2]
[311298968,1705048243222,-500.0,0.00028748,2]
[311298969,1705048243231,-500.0,0.00028748,2]
[311298971,1705048243241,-414.54773656,0.00028748,2]
[311298973,1705048243249,-505.68069225,0.00028748,2]
[311298975,1705048243259,-500.0,0.00028748,2]
[311298976,1705048243268,-500.0,0.00028748,2]
[311298978,1705048243277,-501.8331048,0.00028748,2]
[311298980,1705048243286,-226.54482869,0.00028748,2]
[311298982,1705048243295,-154.62698983,0.00028748,2]
[311298984,1705048243304,-200.0,0.00028748,2]
[311298986,1705048243313,-500.0,0.00028748,2]
[311298988,1705048243322,-500.0,0.00028748,2]
[311298990,1705048243331,-500.0,0.00028748,2]
[311298992,1705048243340,-500.0,0.00028748,2]
[311298994,1705048243348,-500.0,0.00028748,2]
[311298996,1705048243358,-500.0,0.00028748,2]
[311298999,1705048243367,-500.0,0.00028748,2]
[311299001,1705048243376,-639.55190548,0.00028748,2]
[311299002,1705048243385,-500.0,0.00028748,2]
[311299004,1705048243394,-500.0,0.00028748,2]
[311299006,1705048243403,-689.75,0.00028767,2]
[311299008,1705048243412,-798.81,0.00028767,2]
[311299009,1705048243421,-1872.03,0.00028767,2]
[311299011,1705048243430,-500.0,0.00028767,2]
[311299012,1705048243439,-500.0,0.00028767,2]
[311299014,1705048243448,-9878.13,0.00028767,2]
[311299015,1705048243458,-500.0,0.00028767,2]
[311299017,1705048243467,-484.65649682,0.00028767,2]
[311299019,1705048243476,-500.0,0.00028767,2]
[311299020,1705048243485,-5678.27,0.00028767,2]
[311299021,1705048243495,-2123.64,0.00028767,2]
[311299023,1705048243504,-1004.19,0.00028767,2]
[311299025,1705048243512,-500.0,0.00028767,2]
[311299027,1705048243522,-500.0,0.00028767,2]
[311299029,1705048243532,-872.05,0.00028767,2]
[311299031,1705048243544,-514.48,0.00028767,2]
[311299033,1705048243553,-364.97942825,0.00028767,2]
[311299035,1705048243562,-609.71,0.00028767,2]
[311299037,1705048243571,-151.0,0.00028842,2]
[311299039,1705048243580,-500.0,0.00028994,2]
[311299041,1705048243589,-500.0,0.00028994,2]
[311299043,1705048243597,-500.0,0.00028998,2]
[311299045,1705048243606,-500.0,0.00028998,2]
[311299047,1705048243616,-500.0,0.00028999,2]
[311299048,1705048243625,-500.0,0.00028999,2]
[311299049,1705048243634,-500.0,0.00028999,2]
[311299050,1705048243643,-500.0,0.00028999,2]
[311299051,1705048243653,-500.0,0.00028999,2]
[311299052,1705048243662,-500.0,0.00028999,2]
[311299053,1705048243671,-500.0,0.00028999,2]
[311299054,1705048243680,-500.0,0.00028999,2]
[311299055,1705048243689,-500.0,0.00028999,2]
[311299056,1705048243698,-500.0,0.00028999,2]
[311299057,1705048243709,-504.1577727,0.00028999,2]
[311299058,1705048243718,-500.0,0.00028999,2]
[311299059,1705048243727,-500.0,0.00028999,2]
[311299060,1705048243736,-500.0,0.00028999,2]
[311299061,1705048243745,-782.39974458,0.00028999,5]
[311299062,1705048243754,-500.0,0.00028999,2]
[311299063,1705048243764,-500.0,0.00028999,2]
[311299064,1705048243773,-500.0,0.00028999,2]
[311299065,1705048243783,-500.0,0.00028999,2]
[311299066,1705048243792,-264.33380194,0.00028999,2]
[311299067,1705048243801,-500.0,0.00028999,2]
[311299068,1705048243810,-502.05721152,0.00028999,2]
[311299069,1705048243819,-500.0,0.00028999,2]
[311299070,1705048243829,-500.0,0.00028999,2]
[311299071,1705048243838,-500.0,0.00028999,2]
[311299072,1705048243847,-500.0,0.00028999,2]
[311299073,1705048243856,-500.0,0.00028999,2]
[311299074,1705048243866,-500.0,0.00028999,2]
[311299075,1705048243875,-500.0,0.00028999,2]
[311299076,1705048243885,-500.0,0.00028999,2]
[311299077,1705048243894,-500.0,0.00028999,2]
[311299078,1705048243903,-500.0,0.00028999,2]
[311299079,1705048243912,-500.0,0.00028999,2]
[311299080,1705048243921,-500.0,0.00028999,2]
[311299081,1705048243930,-500.0,0.00028999,2]
[311299082,1705048243940,-501.43,0.00028999,2]
[311299083,1705048243949,-500.0,0.00028999,2]
[311299084,1705048243959,-500.0,0.00028999,2]
[311299085,1705048243967,-577.42,0.00028999,2]
[311299086,1705048243976,-1027.4,0.00028999,2]
[311299087,1705048243985,-500.0,0.00028999,2]
[311299088,1705048243994,-500.0,0.00028999,2]
[311299089,1705048244004,-503.93237141,0.00028999,2]
[311299090,1705048244013,-517.45998874,0.00028999,2]
[311299091,1705048244022,-500.0,0.00028999,2]
[311299092,1705048244032,-500.0,0.00028999,2]
[311299093,1705048244042,-503.15600705,0.00028999,2]
[311299094,1705048244051,-500.0,0.00028999,2]
[311299095,1705048244061,-500.0,0.00028999,2]
[311299096,1705048244073,-500.0,0.00028999,2]
[311299097,1705048244082,-500.0,0.00028999,2]
[311299098,1705048244091,-500.0,0.00028999,2]
[311299099,1705048244100,-500.0,0.00028999,2]
[311299100,1705048244110,-437.01491593,0.00028999,2]
[311299101,1705048244119,-500.0,0.00028999,2]
[311299102,1705048244128,-500.0,0.00028999,2]
[311299103,1705048244137,-500.0,0.00028999,2]
[311299104,1705048244146,-502.51546201,0.00028999,2]
[311299105,1705048244154,-500.0,0.00028999,2]
[311299106,1705048244164,-468.66183253,0.00028999,2]
[311299107,1705048244173,-500.0,0.00028999,2]
[311299108,1705048244265,-500.0,0.00028999,2]
[311299109,1705048244274,-500.0,0.00028999,2]
[311299110,1705048244284,-500.0,0.00028999,2]
[311299111,1705048244293,-174.61553241,0.00028999,2]
[311299112,1705048244301,-501.05435325,0.00028999,2]
[311299113,1705048244310,-501.43113503,0.00028999,2]
[311299114,1705048244319,-500.0,0.00028999,2]
[311299115,1705048244328,-500.0,0.00028999,2]
[311299116,1705048244338,-501.55397726,0.00028999,2]
[311299117,1705048244347,-563.97552257,0.00028999,2]
[311299118,1705048244356,-502.00356295,0.00028999,2]
[311299119,1705048244365,-500.0,0.00028999,2]
[311299120,1705048244374,-2669.35,0.00028999,2]
[311299121,1705048244382,-11133.26,0.00028999,2]
[311299122,1705048244391,-500.0,0.00028999,2]
[311299123,1705048244400,-500.0,0.00028999,2]
[311299124,1705048244409,-1168.89,0.00028999,2]
[311299125,1705048244418,-500.0,0.00028999,2]
[311299126,1705048244427,-500.0,0.00028999,2]
[311299127,1705048244436,-3025.65541023,0.00029,2]
[311299128,1705048244445,-310.07132537,0.00029,2]
[311299129,1705048244454,-1000.0,0.00029022,2]
[311299130,1705048244465,-500.0,0.00029022,2]
[311299131,1705048244475,-621.08824954,0.00029022,2]
[311299132,1705048244485,-324.53901235,0.00029022,2]
[311299133,1705048244493,-500.0,0.00029022,2]
[311299134,1705048244502,-502.81795589,0.00029022,2]
[311299135,1705048244510,-500.0,0.00029022,2]
[311299136,1705048244519,-499.58251508,0.00029022,2]
[311299137,1705048244531,-500.0,0.00029022,2]
[311299138,1705048244540,-500.0,0.00029022,2]
[311299139,1705048244549,-500.0,0.00029022,2]
[311299140,1705048244558,-500.0,0.00029022,2]
[311299141,1705048244567,-500.0,0.00029022,2]
[311299142,1705048244576,-500.0,0.00029022,2]
[311299143,1705048244585,-414.29802364,0.00029022,2]
[311299144,1705048244594,-500.0,0.00029022,2]
[311299145,1705048244604,-500.0,0.00029022,2]
[311299146,1705048244614,-500.0,0.00029022,2]
[311299147,1705048244624,-501.98888998,0.00029022,2]
[311299148,1705048244633,-500.0,0.00029022,2]
[311299149,1705048244643,-500.0,0.00029022,2]
[311299150,1705048244652,-500.0,0.00029022,2]
[311299151,1705048244661,-579.49768973,0.00029022,2]
[311299152,1705048244671,-500.99325054,0.00029022,2]
[311299153,1705048244680,-500.0,0.00029022,2]
[311299154,1705048244689,-500.0,0.00029022,2]
[311299155,1705048244699,-500.0,0.00029022,2]
[311299156,1705048244710,-200.0,0.00029022,2]
[311299157,1705048244719,-500.0,0.00029022,2]
[311299158,1705048244729,-420.55872186,0.00029022,2]
[311299159,1705048244738,-500.0,0.00029022,2]
[311299160,1705048244747,-500.0,0.00029022,2]
[311299161,1705048244756,-500.0,0.00029022,2]
[311299162,1705048244765,-500.0,0.00029022,2]
[311299163,1705048244774,-500.0,0.00029022,2]
[311299164,1705048244783,-505.44493024,0.00029022,2]
[311299165,1705048244792,-689.75,0.00029041,2]
[311299166,1705048244801,-798.81,0.00029041,2]
[311299167,1705048244810,-1872.03,0.00029041,2]
[311299168,1705048244820,-500.0,0.00029041,2]
[311299169,1705048244829,-500.0,0.00029041,2]
[311299170,1705048244838,-9878.13,0.00029041,2]
[311299171,1705048244847,-500.0,0.00029041,2]
[311299172,1705048244856,-500.0,0.00029041,2]
[311299173,1705048244866,-5678.27,0.00029041,2]
[311299174,1705048244875,-2123.64,0.00029041,2]
[311299175,1705048244884,-500.0,0.00029041,2]
[311299176,1705048244893,-1004.19,0.00029041,2]
[311299177,1705048244903,-500.0,0.00029041,2]
[311299178,1705048244913,-872.05,0.00029041,2]
[311299179,1705048244922,-514.48,0.00029041,2]
[311299180,1705048244932,-609.71,0.00029041,2]
[311299181,1705048244942,-500.0,0.00029069,2]
[311299182,1705048244951,-500.0,0.00029069,2]
[311299183,1705048244962,-160.79888512,0.0002907,2]
[311299184,1705048244971,-231.7775522,0.0002907,2]
[311299185,1705048244980,-197.246188,0.00029147,2]
[311299186,1705048244990,-500.79379919,0.00029273,2]
[311299187,1705048244999,-500.0,0.00029273,2]
[311299188,1705048245009,-500.0,0.00029273,2]
[311299189,1705048245017,-505.05837754,0.00029273,2]
[311299190,1705048245027,-500.0,0.00029273,2]
[311299191,1705048245036,-500.0,0.00029273,2]
[311299192,1705048245046,-501.23123172,0.00029273,2]
[311299193,1705048245055,-500.84331134,0.00029273,2]
[311299194,1705048245065,-247.45274419,0.00029273,2]
[311299195,1705048245074,-500.0,0.00029273,2]
[311299196,1705048245083,-505.0382672,0.00029273,2]
[311299197,1705048245092,-529.29776367,0.00029273,2]
[311299198,1705048245101,-506.03774952,0.00029273,2]
[311299199,1705048245110,-500.0,0.00029273,2]
[311299200,1705048245120,-504.32950363,0.00029273,2]
[311299201,1705048245129,-437.47651782,0.00029273,2]
[311299202,1705048245138,-500.0,0.00029273,2]
[311299203,1705048245148,-500.0,0.00029273,2]
[311299204,1705048245156,-511.03090155,0.00029273,2]
[311299205,1705048245165,-501.24111188,0.00029273,2]
[311299206,1705048245174,-500.0,0.00029273,2]
[311299207,1705048245182,-520.82405468,0.00029273,2]
[311299208,1705048245191,-500.0,0.00029273,2]
[311299209,1705048245200,-501.43,0.00029273,2]
[311299210,1705048245210,-500.0,0.00029273,2]
[311299211,1705048245219,-500.0,0.00029273,2]
[311299212,1705048245228,-577.42,0.00029273,2]
[311299213,1705048245237,-1027.4,0.00029273,2]
[311299214,1705048245245,-504.70562104,0.00029273,2]
[311299215,1705048245254,-506.22767674,0.00029273,2]
[311299216,1705048245263,-507.25362827,0.00029273,2]
[311299217,1705048245271,-500.0,0.00029273,2]
[311299218,1705048245280,-500.0,0.00029273,2]
[311299219,1705048245289,-500.0,0.00029273,2]
[311299220,1705048245297,-500.0,0.00029273,2]
[311299221,1705048245307,-533.68955845,0.00029273,2]
[311299222,1705048245315,-500.0,0.00029273,2]
[311299223,1705048245324,-510.48923295,0.00029273,2]
[311299224,1705048245333,-501.81277413,0.00029273,2]
[311299225,1705048245342,-500.0,0.00029273,2]
[311299226,1705048245351,-511.6283861,0.00029273,2]
[311299227,1705048245360,-500.0,0.00029273,2]
[311299228,1705048245369,-500.0,0.00029273,2]
[311299229,1705048245378,-505.5212539,0.00029273,2]
[311299230,1705048245386,-2669.35,0.00029273,2]
[311299231,1705048245395,-11133.26,0.00029273,2]
[311299232,1705048245404,-501.77134193,0.00029273,2]
[311299233,1705048245414,-618.80065839,0.00029273,2]
[311299234,1705048245425,-1168.89,0.00029273,2]
[311299235,1705048245434,-565.37932218,0.00029273,2]
[311299236,1705048245443,-1000.0,0.00029296,2]
[311299237,1705048245453,-500.0,0.00029296,2]
[311299238,1705048245464,-500.0,0.00029296,2]
[311299239,1705048245473,-500.0,0.00029296,2]
[311299240,1705048245482,-500.0,0.00029296,2]
[311299241,1705048245491,-500.0,0.00029296,2]
[311299242,1705048245500,-376.12675953,0.00029296,2]
[311299243,1705048245509,-465.78510027,0.00029296,2]
[311299244,1705048245518,-500.0,0.00029296,2]
[311299245,1705048245528,-502.73231423,0.00029296,2]
[311299246,1705048245539,-500.0,0.00029296,2]
[311299247,1705048245548,-500.0,0.00029296,2]
[311299248,1705048245558,-500.0,0.00029296,2]
[311299249,1705048245567,-500.0,0.00029296,2]
[311299250,1705048245577,-500.0,0.00029296,2]
[311299251,1705048245586,-500.0,0.00029296,2]
[311299252,1705048245594,-500.0,0.00029296,2]
[311299253,1705048245604,-500.93772388,0.00029296,2]
[311299254,1705048245613,-500.0,0.00029296,2]
[311299255,1705048245622,-205.36424637,0.00029296,2]
[311299256,1705048245632,-500.0,0.00029296,2]
[311299257,1705048245641,-500.0,0.00029296,2]
[311299258,1705048245650,-500.0,0.00029296,2]
[311299259,1705048245659,-500.0,0.00029296,2]
[311299260,1705048245669,-501.28507921,0.00029296,2]
[311299261,1705048245679,-501.60256451,0.00029296,2]
[311299262,1705048245688,-500.0,0.00029299,2]
[311299263,1705048245697,-252.385167,0.000293,2]
[311299264,1705048245708,-252.385167,0.000293,2]
[311299265,1705048245716,-49653.10630059,0.000293,5]
[311299266,1705048245726,-689.75,0.00029315,2]
[311299267,1705048245735,-798.81,0.00029315,2]
[311299268,1705048245744,-1872.03,0.00029315,2]
[311299269,1705048245753,-500.0,0.00029315,2]
[311299270,1705048245762,-500.0,0.00029315,2]
[311299272,1705048245771,-9878.13,0.00029315,2]
[311299273,1705048245780,-500.0,0.00029315,2]
[311299274,1705048245791,-500.0,0.00029315,2]
[311299275,1705048245800,-5678.27,0.00029315,2]
[311299276,1705048245809,-2123.64,0.00029315,2]
[311299277,1705048245818,-500.0,0.00029315,2]
[311299278,1705048245827,-1004.19,0.00029315,2]
[311299279,1705048245837,-500.0,0.00029315,2]
[311299280,1705048245847,-872.05,0.00029315,2]
[311299281,1705048245856,-514.48,0.00029315,2]
[311299282,1705048245865,-609.71,0.00029315,2]
[311299283,1705048245874,-160.63126229,0.00029415,2]
[311299284,1705048245884,-620.00789698,0.00029454,2]
[311299286,1705048245894,-167.10606654,0.0002947,2]
[311299288,1705048245904,-978.10769969,0.000295,3]
[311299290,1705048245913,-500.0,0.00029547,2]
[311299292,1705048245922,-500.0,0.00029547,2]
[311299293,1705048245931,-500.0,0.00029547,2]
[311299294,1705048245940,-449.14383856,0.00029547,2]
[311299296,1705048245950,-500.0,0.00029547,2]
[311299297,1705048245959,-500.0,0.00029547,2]
[311299298,1705048245968,-500.0,0.00029547,2]
[311299299,1705048245977,-500.0,0.00029547,2]
[311299300,1705048245986,-500.0,0.00029547,2]
[311299301,1705048245995,-406.80805071,0.00029547,2]
[311299302,1705048246004,-501.43,0.00029547,2]
[311299303,1705048246013,-505.4618838,0.00029547,2]
[311299304,1705048246022,-500.0,0.00029547,2]
[311299305,1705048246031,-577.42,0.00029547,2]
[311299306,1705048246040,-1027.4,0.00029547,2]
[311299307,1705048246050,-500.0,0.00029547,2]
[311299309,1705048246059,-500.0,0.00029547,2]
[311299310,1705048246068,-500.0,0.00029547,2]
[311299312,1705048246078,-500.0,0.00029547,2]
[311299313,1705048246087,-500.0,0.00029547,2]
[311299314,1705048246096,-500.0,0.00029547,2]
[311299315,1705048246105,-500.0,0.00029547,2]
[311299316,1705048246114,-506.19158785,0.00029547,2]
[311299317,1705048246123,-2669.35,0.00029547,2]
[311299318,1705048246131,-11133.26,0.00029547,2]
[311299319,1705048246141,-1168.89,0.00029547,2]
[311299320,1705048246151,-189.04176249,0.0002956,2]
[311299321,1705048246160,-151.0,0.00029565,2]
[311299322,1705048246169,-206.36593232,0.0002957,2]
[311299324,1705048246178,-500.0,0.0002957,2]
[311299326,1705048246187,-506.17830102,0.0002957,2]
[311299327,1705048246196,-165.5381675,0.0002957,2]
[311299328,1705048246205,-507.72720742,0.0002957,2]
[311299329,1705048246216,-184.13370995,0.0002957,2]
[311299330,1705048246225,-502.59292805,0.0002957,2]
[311299331,1705048246237,-500.0,0.0002957,2]
[311299332,1705048246248,-500.0,0.0002957,2]